{"text_format":"3","workbook":"xlsx","n_sheets":19,"sheets":["HOME","SOAL 1","SOAL 2","SOAL 3","SOAL 4","SOAL 5","SOAL 6","SOAL 7","SOAL 8","SOAL 9","SOAL 10","Sheet 1 e","Sheet 2 e","Sheet 3 e","Sheet4 e","Sheet 5 e","HASIL","KUNCI","Sheet6"],"not_rendered":{"images":1,"defined_names":35,"comments":1},"read":"whole","date_system":"1900"}

{"sheet":"HOME","index":0,"n_rows":13,"n_cols":8,"rows_kept":13,"merged":[[2,3,2,19],[3,3,3,19],[4,3,4,19],[6,4,6,5],[6,7,6,17],[7,4,7,5],[8,7,8,17],[10,7,10,17],[12,7,12,17]]}
[]
[]
[{"$nulls":3},"UJIAN AKHIR SEMESTER"]
[{"$nulls":3},"FAKULTAS PENDIDIKAN DAN ILMU PENGETAHUAN"]
[{"$nulls":3},"UNIVERSITAS AHMAD DAHLAN"]
[]
[{"$nulls":4},"NAMA"]
[]
[{"$nulls":4},"NIM"]
[]
[{"$nulls":4},"TANGGAL",null,null,{"$f":"NOW()","v":"2012-10-17T19:03:53.460"}]
[]
[{"$nulls":4},"WAKTU",null,null,{"$f":"NOW()","v":"2012-10-17T19:03:53.460"}]

{"sheet":"SOAL 1","index":1,"n_rows":10,"n_cols":3,"rows_kept":10,"merged":[[9,2,9,3]]}
[]
[null,null,"1. Perbedaan sel prokariotik dan sel eukariotik terutama terletak pada …."]
[null,null,"a. membran inti sel"]
[null,null,"b. DNA"]
[null,null,"c. besar sel"]
[null,null,"d. tempat hidup sel"]
[null,null,"e. membran sel"]
[]
[]
[null,null,"YOUR ANSWER"]

{"sheet":"SOAL 2","index":2,"n_rows":10,"n_cols":3,"rows_kept":10,"merged":[[9,2,9,3]]}
[]
[null,null,"2. Berikut yang merupakan contoh sel prokariotik adalah …."]
[null,null,"a. Cyanobacteria dan bakteri"]
[null,null,"b. Cyanobacteria dan jamur"]
[null,null,"c. jamur dan bakteri"]
[null,null,"d. bakteri dan lumut"]
[null,null,"e. protozoa dan lumut"]
[]
[]
[null,null,"YOUR ANSWER"]

{"sheet":"SOAL 3","index":3,"n_rows":10,"n_cols":3,"rows_kept":10,"merged":[[9,2,9,3]]}
[]
[null,null,"3. Materi genetik sebuah sel eukariotik tersimpan di …."]
[null,null,"a. badan Golgi"]
[null,null,"b. nukleus"]
[null,null,"c. kloroplas"]
[null,null,"d. ribosom"]
[null,null,"e. mitokondria"]
[]
[]
[null,null,"YOUR ANSWER"]

{"sheet":"SOAL 4","index":4,"n_rows":10,"n_cols":3,"rows_kept":10,"merged":[[9,2,9,3]]}
[]
[null,null,"4. Sebagian besar ATP dihasilkan di organ …."]
[null,null,"a. badan Golgi"]
[null,null,"b. nukleus"]
[null,null,"c. kloroplas"]
[null,null,"d. ribosom"]
[null,null,"e. mitokondria"]
[]
[]
[null,null,"YOUR ANSWER"]

{"sheet":"SOAL 5","index":5,"n_rows":10,"n_cols":3,"rows_kept":10,"merged":[[9,2,9,3]]}
[]
[null,null,"5. Organel yang berisi enzim percernaan disebut …."]
[null,null,"a. lisosom"]
[null,null,"b. RE halus"]
[null,null,"c. silia"]
[null,null,"d. badan Golgi"]
[null,null,"e. mitokondria"]
[]
[]
[null,null,"YOUR ANSWER"]

{"sheet":"SOAL 6","index":6,"n_rows":10,"n_cols":3,"rows_kept":10,"merged":[[9,2,9,3]]}
[]
[null,null,"6. Saluran tertutup membran dengan ribosom disebut …."]
[null,null,"a. lisosom"]
[null,null,"b. RE halus"]
[null,null,"c. RE kasar"]
[null,null,"d. badan Golgi"]
[null,null,"e. mitokondria"]
[]
[]
[null,null,"YOUR ANSWER"]

{"sheet":"SOAL 7","index":7,"n_rows":10,"n_cols":3,"rows_kept":10,"merged":[[9,2,9,3]]}
[]
[null,null,"7. Organel yang berperan dalam hal fotosintesis, adalah …."]
[null,null,"a. mitokondria"]
[null,null,"b. kloroplas"]
[null,null,"c. vakuola kontraktil"]
[null,null,"d. badan Golgi"]
[null,null,"e. anak inti (nukleolus)"]
[]
[]
[null,null,"YOUR ANSWER"]

{"sheet":"SOAL 8","index":8,"n_rows":10,"n_cols":3,"rows_kept":10,"merged":[[9,2,9,3]]}
[]
[null,null,"8. Organel-organel yang berperan dalam sintesis enzim adalah …."]
[null,null,"a. retikulum endoplasma"]
[null,null,"b. badan Golgi"]
[null,null,"c. mitokondria"]
[null,null,"d. ribosom"]
[null,null,"e. membran inti sel"]
[]
[]
[null,null,"YOUR ANSWER"]

{"sheet":"SOAL 9","index":9,"n_rows":10,"n_cols":3,"rows_kept":10,"merged":[[9,2,9,3]]}
[]
[null,null,"9. Mengerutnya sitoplasma pada tumbuhan disebut …."]
[null,null,"a. endositosis"]
[null,null,"b. osmoregulasi"]
[null,null,"c. lisis"]
[null,null,"d. eksositosis"]
[null,null,"e. plasmolisis"]
[]
[]
[null,null,"YOUR ANSWER"]

{"sheet":"SOAL 10","index":10,"n_rows":10,"n_cols":3,"rows_kept":10,"merged":[[9,2,9,3]]}
[]
[null,null,"10. Naik turunnya tekanan turgor dari sel bergantung dari …."]
[null,null,"a. banyak-sedikitnya air di dalam sel"]
[null,null,"b. tebal dan tipisnya dinding sel"]
[null,null,"c. kepekatan isi sel"]
[null,null,"d. macam sel"]
[null,null,"e. banyak-sedikitnya zat"]
[]
[]
[null,null,"YOUR ANSWER"]

{"sheet":"Sheet 1 e","index":11,"n_rows":7,"n_cols":3,"rows_kept":7,"merged":[[6,4,7,5]]}
[]
[null,null,"11. Organel sel yang menjadi pengatur aktifitas sel adalah…."]
[]
[]
[]
[]
[null,null,"Your answer "]

{"sheet":"Sheet 2 e","index":12,"n_rows":7,"n_cols":3,"rows_kept":7,"merged":[[6,4,7,5]]}
[]
[null,null,"12. Kumpulan dari sel adalah…….."]
[]
[]
[]
[]
[null,null,"Your answer "]

{"sheet":"Sheet 3 e","index":13,"n_rows":7,"n_cols":3,"rows_kept":7,"merged":[[6,4,7,5]]}
[]
[null,null,"13. Jaringan pengikat disebut juga….."]
[]
[]
[]
[]
[null,null,"Your answer "]

{"sheet":"Sheet4 e","index":14,"n_rows":7,"n_cols":3,"rows_kept":7,"merged":[[6,4,7,5]]}
[]
[null,null,"14. Proses penghasilan energi terbesar adalah…"]
[]
[]
[]
[]
[null,null,"Your answer "]

{"sheet":"Sheet 5 e","index":15,"n_rows":7,"n_cols":3,"rows_kept":7,"merged":[[6,4,7,5]]}
[]
[null,null,"15. Sel didominasi oleh zat….."]
[]
[]
[]
[]
[null,null,"Your answer "]

{"sheet":"HASIL","index":16,"n_rows":26,"n_cols":23,"rows_kept":26,"merged":[[2,3,2,19],[3,3,3,19],[4,3,4,19],[6,4,6,5],[6,7,6,17],[7,4,7,5],[8,7,8,17],[10,7,10,17],[12,7,12,17],[14,5,14,6],[14,7,14,8],[14,14,14,18],[15,5,15,6],[15,7,15,8],[16,5,16,6],[16,7,16,8],[16,11,16,12],[16,14,16,18],[17,5,17,6],[17,7,17,8],[17,11,17,12],[17,14,17,18],[18,5,18,6],[18,7,18,8],[18,11,18,12],[18,14,18,18],[19,5,19,6],[19,7,19,8],[20,5,20,6],[20,7,20,8],[20,12,20,14],[20,15,20,18],[21,5,21,6],[21,7,21,8],[21,12,21,14],[21,15,21,18],[22,5,22,6],[22,7,22,8],[22,12,22,14],[22,15,22,18],[23,5,23,6],[23,7,23,8],[23,12,23,14],[23,15,23,18],[24,5,24,6],[24,7,24,8],[24,12,24,14],[24,15,24,18],[25,5,25,6],[25,7,25,8],[25,12,25,14],[25,15,25,18]]}
[]
[]
[{"$nulls":3},"UJIAN AKHIR SEMESTER"]
[{"$nulls":3},"FAKULTAS PENDIDIKAN DAN ILMU PENGETAHUAN"]
[{"$nulls":3},"UNIVERSITAS AHMAD DAHLAN"]
[]
[{"$nulls":4},"NAMA"]
[]
[{"$nulls":4},"NIM"]
[]
[{"$nulls":4},"TANGGAL",null,null,{"$f":"NOW()","v":"2012-10-17T19:03:53.460"}]
[]
[{"$nulls":4},"WAKTU",null,null,{"$f":"NOW()","v":"2012-10-17T19:03:53.460"}]
[]
[{"$nulls":4},"NO","HASIL",null,"ANGKA",{"$nulls":3},"NILAI",null,null,{"$f":"(O17+O18)*6","v":0}]
[{"$nulls":4},1,{"$f":"IF(JAWAB1=KUNCI1,\"BENAR\",\"SALAH\")","v":"SALAH"},null,{"$f":"IF(JAWAB1=KUNCI1,\"20\",\"0\")","v":"0"},{"$nulls":14},2]
[{"$nulls":4},2,{"$f":"IF(JAWAB2=KUNCI2,\"BENAR\",\"SALAH\")","v":"SALAH"},null,{"$f":"IF(JAWAB2=KUNCI2,\"20\",\"0\")","v":"0"},{"$nulls":3},"BENAR PG",null,null,{"$f":"COUNTIF(F16:G25,\"BENAR\")","v":0}]
[{"$nulls":4},3,{"$f":"IF(JAWAB3=KUNCI3,\"BENAR\",\"SALAH\")","v":"SALAH"},null,{"$f":"IF(JAWAB3=KUNCI3,\"20\",\"0\")","v":"0"},{"$nulls":3},"BENAR ESSAY",null,null,{"$f":"COUNTIF(M22:O26,\"BENAR\")","v":0}]
[{"$nulls":4},4,{"$f":"IF(JAWAB4=KUNCI4,\"BENAR\",\"SALAH\")","v":"SALAH"},null,{"$f":"IF(JAWAB4=KUNCI4,\"20\",\"0\")","v":"0"}]
[{"$nulls":4},5,{"$f":"IF(JAWAB5=KUNCI5,\"BENAR\",\"SALAH\")","v":"SALAH"},null,{"$f":"IF(JAWAB5=KUNCI5,\"20\",\"0\")","v":"0"}]
[{"$nulls":4},6,{"$f":"IF(JAWAB6=KUNCI6,\"BENAR\",\"SALAH\")","v":"SALAH"},null,{"$f":"IF(JAWAB6=KUNCI6,\"20\",\"0\")","v":"0"},{"$nulls":3},"NO","HASIL",null,null,"ANGKA"]
[{"$nulls":4},7,{"$f":"IF(JAWAB7=KUNCI7,\"BENAR\",\"SALAH\")","v":"SALAH"},null,{"$f":"IF(JAWAB7=KUNCI7,\"20\",\"0\")","v":"0"},{"$nulls":3},11,{"$f":"IF(JAWAB11=KUNCI11,\"BENAR\",\"SALAH\")","v":"SALAH"},null,null,{"$f":"IF(JAWAB11=KUNCI11,\"20\",\"0\")","v":"0"}]
[{"$nulls":4},8,{"$f":"IF(JAWAB8=KUNCI8,\"BENAR\",\"SALAH\")","v":"SALAH"},null,{"$f":"IF(JAWAB8=KUNCI8,\"20\",\"0\")","v":"0"},{"$nulls":3},12,{"$f":"IF(JAWAB12=KUNCI12,\"BENAR\",\"SALAH\")","v":"SALAH"},null,null,{"$f":"IF(JAWAB12=KUNCI12,\"20\",\"0\")","v":"0"}]
[{"$nulls":4},9,{"$f":"IF(JAWAB9=KUNCI9,\"BENAR\",\"SALAH\")","v":"SALAH"},null,{"$f":"IF(JAWAB9=KUNCI9,\"20\",\"0\")","v":"0"},{"$nulls":3},13,{"$f":"IF(JAWAB13=KUNCI13,\"BENAR\",\"SALAH\")","v":"SALAH"},null,null,{"$f":"IF(JAWAB13=KUNCI13,\"20\",\"0\")","v":"0"}]
[{"$nulls":4},10,{"$f":"IF(JAWAB10=KUNCI10,\"BENAR\",\"SALAH\")","v":"SALAH"},null,{"$f":"IF(JAWAB10=KUNCI10,\"20\",\"0\")","v":"0"},{"$nulls":3},14,{"$f":"IF(JAWAB14=KUNCI14,\"BENAR\",\"SALAH\")","v":"SALAH"},null,null,{"$f":"IF(JAWAB14=KUNCI14,\"20\",\"0\")","v":"0"}]
[{"$nulls":11},15,{"$f":"IF(JAWAB15=KUNCI15,\"BENAR\",\"SALAH\")","v":"SALAH"},null,null,{"$f":"IF(JAWAB15=KUNCI15,\"20\",\"0\")","v":"0"}]

{"sheet":"KUNCI","index":17,"n_rows":20,"n_cols":3,"rows_kept":20}
[]
[]
[]
[]
[null,"NO","KUNCI"]
[null,1,"A"]
[null,2,"B"]
[null,3,"A"]
[null,4,"B"]
[null,5,"C"]
[null,6,"D"]
[null,7,"D"]
[null,8,"E"]
[null,9,"C"]
[null,10,"E"]
[null,11,"inti sel"]
[null,12,"jaringan"]
[null,13,"epitel"]
[null,14,"katabolisme"]
[null,15,"cair"]

{"sheet":"Sheet6","index":18,"n_rows":10,"n_cols":3,"rows_kept":10,"merged":[[9,2,9,3]]}
{"$rows_empty":9}
[null,null,"YOUR ANSWER"]